Workbook

Sheet BUDGET - Current
C1: After creating a new budget, simply follow each step by clicking on the buttons to the left. NOTE: Only edit shaded budget values. Once step 4 is completed, the program will automatically input all actual income/expeditures into the appropriate cell and calculate your budget variances.
A2: CATEGORY | C2: TEMPLATE (DO NOT DELETE) | F2: 2011-01-01
C3: BUDGETED | D3: ACTUAL | E3: VARIANCE | F3: BUDGETED | G3: ACTUAL | H3: VARIANCE
A4: INCOME
B5: Paycheck (Net of Tax) | C5: 3200 | D5: 0 | E5: =D5-C5 -> -3200 | F5: 0 | G5: 0 | H5: =G5-F5 -> 0
B6: Income - Miscellaneous | C6: 300 | D6: 0 | E6: =D6-C6 -> -300 | F6: 0 | G6: 0 | H6: =G6-F6 -> 0
B7: Reimbursements | C7: 200 | D7: 0 | E7: =D7-C7 -> -200 | F7: 0 | G7: 0 | H7: =G7-F7 -> 0
B8: Transfer From Savings / Emergency Cash | C8: 0 | D8: 0 | E8: =D8-C8 -> 0 | F8: 0 | G8: 0 | H8: =G8-F8 -> 0
B9: Total Monthly Infow | C9: =SUM(C5:C8) -> 3700 | D9: =SUM(D5:D8) -> 0 | E9: =D9-C9 -> -3700 | F9: =SUM(F5:F8) -> 0 | G9: =SUM(G5:G8) -> 0 | H9: =G9-F9 -> 0
A11: SAVINGS
A12: SAVINGS
B13: Savings | C13: 120 | D13: 0 | E13: =C13-D13 -> 120 | F13: 0 | G13: 0 | H13: =F13-G13 -> 0
B14: TOTAL SAVINGS | C14: =SUM(C12:C13) -> 120 | D14: 0 | E14: 120 | F14: =SUM(F12:F13) -> 0 | G14: 0 | H14: 0
A16: VARIABLE EXPENSES
A17: CHARITY
B18: Tithing (10% of Gross) | C18: =0.1*(C5*1.08) -> 345.6 | D18: 0 | E18: =C18-D18 -> 345.6 | F18: =0.1*(F5*1.08) -> 0 | G18: 0 | H18: =F18-G18 -> 0
B19: Fast Offerings | C19: 25 | D19: 0 | E19: =C19-D19 -> 25 | F19: 0 | G19: 0 | H19: =F19-G19 -> 0
B20: Miscellaneous Charity | C20: 0 | D20: 0 | E20: 0 | F20: 0 | G20: 0 | H20: 0
A21: GROCERIES
B22: Groceries - Food | C22: 280 | D22: 0 | E22: 280 | F22: 0 | G22: 0 | H22: =F22-G22 -> 0
B23: Vitamins | C23: 160 | D23: 0 | E23: 160 | F23: 0 | G23: 0 | H23: 0
B24: Personal Care | C24: 20 | D24: 0 | E24: 20 | F24: 0 | G24: 0 | H24: 0
B25: Clothing | C25: 0 | D25: 0 | E25: 0 | F25: 0 | G25: 0 | H25: 0
B26: Household | C26: 10 | D26: 0 | E26: 10 | F26: 0 | G26: 0 | H26: 0
B27: Shipping / Mail | C27: 0 | D27: 0 | E27: =C27-D27 -> 0 | F27: 0 | G27: 0 | H27: =F27-G27 -> 0
B28: Miscellaneous - Groceries | C28: 0 | D28: 0 | E28: 0 | F28: 0 | G28: 0 | H28: 0
A29: CHILDREN
B30: Allowance | C30: 5 | D30: 0 | E30: =C30-D30 -> 5 | F30: 0 | G30: 0 | H30: =F30-G30 -> 0
B31: Preschool | C31: 60 | D31: 0 | E31: 60 | F31: 0 | G31: 0 | H31: =F31-G31 -> 0
B32: Baby Supplies (Diapers/Wipes) | C32: 50 | D32: 0 | E32: 50 | F32: 0 | G32: 0 | H32: 0
B33: Books | C33: 0 | D33: 0 | E33: 0 | F33: 0 | G33: 0 | H33: 0
B34: Toys | C34: 0 | D34: 0 | E34: =C34-D34 -> 0 | F34: 0 | G34: 0 | H34: =F34-G34 -> 0
B35: Clothing - Children | C35: 10 | D35: 0 | E35: 10 | F35: 0 | G35: 0 | H35: 0
B36: Miscellaneous - Children
A37: AUTO
B38: Fuel | C38: 60 | D38: 0 | E38: 60 | F38: 0 | G38: 0 | H38: =F38-G38 -> 0
B39: Maintenance | C39: 0 | D39: 0 | E39: 0 | F39: 0 | G39: 0 | H39: 0
B40: Taxes | C40: 0 | D40: 0 | E40: 0 | F40: 0 | G40: 0 | H40: 0
A41: UTILITIES
B42: Gas | C42: 0 | D42: 0 | E42: 0 | F42: 0 | G42: 0 | H42: =F42-G42 -> 0
B43: Electricity | C43: 39 | D43: 0 | E43: 39 | F43: 0 | G43: 0 | H43: 0
B44: Water/Garbage/Sewer/Laundry | C44: 20 | D44: 0 | E44: 20 | F44: 0 | G44: 0 | H44: 0
A45: MEDICAL
B46: Pharmacy/Drugs | C46: 0 | D46: 0 | E46: 0 | F46: 0 | G46: 0 | H46: =F46-G46 -> 0
B47: Doctor | C47: 0 | D47: 0 | E47: 0 | F47: 0 | G47: 0 | H47: 0
B48: Maternity | C48: 0 | D48: 0 | E48: 0 | F48: 0 | G48: 0 | H48: 0
B49: Dentist | C49: 0 | D49: 0 | E49: 0 | F49: 0 | G49: 0 | H49: =F49-G49 -> 0
B50: Vision | C50: 0 | D50: 0 | E50: 0 | F50: 0 | G50: 0 | H50: 0
A51: DEBT | D51: 0 | E51: 0 | G51: 0 | H51: 0
B52: CC Payment in Excess of Crrnt Mnth Expndtrs | C52: 0 | D52: 0 | E52: 0 | F52: 0 | G52: 0 | H52: 0
B53: CC Payoff | C53: 0 | D53: 0 | E53: 0 | F53: 0 | G53: 0 | H53: 0
B54: Deloitte Diner's Card Payoff | C54: 0 | D54: 0 | E54: =C54-D54 -> 0 | F54: 0 | G54: 0 | H54: =F54-G54 -> 0
A55: PERSONAL / FAMILY
B56: Hair | C56: 0 | D56: 0 | E56: 0 | F56: 0 | G56: 0 | H56: =F56-G56 -> 0
B57: Mothering Needs | C57: 0 | D57: 0 | E57: 0 | F57: 0 | G57: 0 | H57: 0
B58: Gifts | C58: 0 | D58: 0 | E58: 0 | F58: 0 | G58: 0 | H58: 0
B59: Family Entertainment | C59: 20 | D59: 0 | E59: 20 | F59: 0 | G59: 0 | H59: 0
B60: Date Night | C60: 20 | D60: 0 | E60: 20 | F60: 0 | G60: 0 | H60: 0
B61: Books | C61: 0 | D61: 0 | E61: =C61-D61 -> 0 | F61: 0 | G61: 0 | H61: =F61-G61 -> 0
B62: HIS | C62: 0 | D62: 0 | E62: 0 | F62: 0 | G62: 0 | H62: 0
B63: Computer/software Needs | C63: 0 | D63: 0 | E63: 0 | F63: 0 | G63: 0 | H63: 0
B64: Office Supplies | C64: 0 | D64: 0 | E64: =C64-D64 -> 0 | F64: 0 | G64: 0 | H64: =F64-G64 -> 0
B65: Health & Fitness | C65: 0 | D65: 0 | E65: 0 | F65: 0 | G65: 0 | H65: 0
B66: Racquetball Expenses | C66: 0 | D66: 0 | E66: 0 | F66: 0 | G66: 0 | H66: =F66-G66 -> 0
B67: HERS | C67: 0 | D67: 0 | E67: 0 | F67: 0 | G67: 0 | H67: 0
B68: Eat-out Food | C68: 0 | D68: 0 | E68: 0 | F68: 0 | G68: 0 | H68: 0
A69: SCHOOL
B70: Tuition | C70: 0 | D70: 0 | E70: 0 | F70: 0 | G70: 0 | H70: =F70-G70 -> 0
B71: Textbooks/printing | C71: 0 | D71: 0 | E71: 0 | F71: 0 | G71: 0 | H71: 0
B72: CPA Exam | C72: 0 | D72: 0 | E72: 0 | F72: 0 | G72: 0 | H72: 0
A73: VACATION
B74: Vacation | C74: 0 | D74: 0 | E74: 0 | F74: 0 | G74: 0 | H74: =F74-G74 -> 0
B75: Air Travel | C75: 0 | D75: 0 | E75: =C75-D75 -> 0 | F75: 0 | G75: 0 | H75: =F75-G75 -> 0
B76: Camping | C76: 0 | D76: 0 | E76: 0 | F76: 0 | G76: 0 | H76: 0
A77: FINANCE PENALTIES
B78: Miscellaneous Fees | C78: 0 | D78: 0 | E78: 0 | F78: 0 | G78: 0 | H78: =F78-G78 -> 0
B79: VARIABLE EXPENSES-Sub Total | C79: =SUM(C18:C78) -> 1124.6 | D79: =SUM(D17:D78) -> 0 | E79: =C79-D79 -> 1124.6 | F79: =SUM(F18:F78) -> 0 | G79: =SUM(G17:G78) -> 0 | H79: =F79-G79 -> 0
B80: TOTAL VARIABLE (SAVINGS + COSTS) | C80: =C14+C79 -> 1244.6 | D80: =D14+D79 -> 0 | E80: =C80-D80 -> 1244.6 | F80: =F14+F79 -> 0 | G80: =G14+G79 -> 0 | H80: =F80-G80 -> 0
B81: Funds Available for FIXED COSTS | C81: =C9-C80 -> 2455.4 | D81: =D5-D80 -> 0 | E81: =D81-C81 -> -2455.4 | F81: =F5-F80 -> 0 | G81: =G5-G80 -> 0 | H81: =G81-F81 -> 0
B83: FIXED COSTS
A84: AUTO
B85: Car Payment | C85: 0 | D85: 0 | E85: =C85-D85 -> 0 | F85: 0 | G85: 0 | H85: =F85-G85 -> 0
B86: Auto Insurance | C86: 78.39 | D86: 0 | E86: =C86-D86 -> 78.39 | F86: 0 | G86: 0 | H86: =F86-G86 -> 0
A87: HOUSING | E87: 0 | H87: 0
B88: Mortgage/Rent | C88: 634 | D88: 0 | E88: 634 | F88: 0 | G88: 0 | H88: 0
B89: Storage Space | C89: 69 | D89: 0 | E89: =C89-D89 -> 69 | F89: 0 | G89: 0 | H89: =F89-G89 -> 0
A90: INTERNET/PHONE | E90: 0 | H90: 0
B91: Phone | C91: 96 | D91: 0 | E91: 96 | F91: 0 | G91: 0 | H91: 0
B92: Internet | C92: 41.99 | D92: 0 | E92: 41.99 | F92: 0 | G92: 0 | H92: 0
A93: INSURANCES | E93: 0 | H93: 0
B94: Health | C94: 0 | D94: 0 | E94: 0 | F94: 0 | G94: 0 | H94: 0
B95: Life | C95: 23.37 | D95: 0 | E95: 23.37 | F95: 0 | G95: 0 | H95: 0
B96: TOTAL FIXED COSTS | C96: =SUM(C84:C95) -> 942.75 | D96: =SUM(D84:D95) -> 0 | E96: =C96-D96 -> 942.75 | F96: =SUM(F84:F95) -> 0 | G96: =SUM(G84:G95) -> 0 | H96: =F96-G96 -> 0
B97: TOTAL COSTS | C97: =C96+C80 -> 2187.35 | D97: =D96+D80 -> 0 | E97: =C97-D97 -> 2187.35 | F97: =F96+F80 -> 0 | G97: =G96+G80 -> 0 | H97: =F97-G97 -> 0
B98: EXCESS OF INCOME/(EXPENSES) | C98: =C81-C96 -> 1512.65 | D98: =D81-D96 -> 0 | E98: =D98-C98 -> -1512.65 | F98: =F81-F96 -> 0 | G98: =G81-G96 -> 0 | H98: =G98-F98 -> 0

Sheet PIVOT
